[Event "Titled Tuesday Blitz November 9 2021"]
[White "Maghsoodloo, Parham"]
[Black "Spata, German"]
[WhiteFideId "12539929"]
[BlackFideId "113026"]
[WhiteElo "2601"]
[BlackElo "2238"]
[Result "1-0"]
[Round "04"]
[TimeControl "180+1"]
[Date "2021.11.09"]
[WhiteClock "0:01:42"]
[BlackClock "0:00:10"]

1. e4 {[%clk 0:03:00]}  e6 {[%clk 0:02:57]} 2. d4 {[%clk 0:03:00]}  d5 {[%clk 0:02:55]} 3. exd5 {[%clk 0:03:00]}  exd5 {[%clk 0:02:54]} 4. Bd3 {[%clk 0:02:57]}  Nf6 {[%clk 0:02:39]} 5. Ne2 {[%clk 0:02:54]}  Bg4 {[%clk 0:02:38]} 6. O-O {[%clk 0:02:54]}  Be7 {[%clk 0:02:37]} 7. c3 {[%clk 0:02:51]}  c6 {[%clk 0:02:37]} 8. Qc2 {[%clk 0:02:52]}  Bh5 {[%clk 0:02:28]} 9. Nf4 {[%clk 0:02:51]}  Bg6 {[%clk 0:02:29]} 10. Nxg6 {[%clk 0:02:51]}  hxg6 {[%clk 0:02:29]} 11. Nd2 {[%clk 0:02:50]}  O-O {[%clk 0:02:29]} 12. Nf3 {[%clk 0:02:50]}  Nbd7 {[%clk 0:02:28]} 13. Bf4 {[%clk 0:02:49]}  Nh5 {[%clk 0:02:26]} 14. Bd2 {[%clk 0:02:48]}  Re8 {[%clk 0:02:25]} 15. Rfe1 {[%clk 0:02:49]}  Nf8 {[%clk 0:02:20]} 16. Re2 {[%clk 0:02:47]}  Bd6 {[%clk 0:02:20]} 17. Rxe8 {[%clk 0:02:44]}  Qxe8 {[%clk 0:02:20]} 18. g3 {[%clk 0:02:44]}  Qd7 {[%clk 0:02:14]} 19. Ne5 {[%clk 0:02:39]}  Qc7 {[%clk 0:02:14]} 20. f4 {[%clk 0:02:38]}  c5 {[%clk 0:01:58]} 21. Be3 {[%clk 0:02:34]}  Nf6 {[%clk 0:01:55]} 22. Rd1 {[%clk 0:02:27]}  Rc8 {[%clk 0:01:54]} 23. dxc5 {[%clk 0:02:14]}  Bxc5 {[%clk 0:01:54]} 24. Bxc5 {[%clk 0:02:15]}  Qxc5+ {[%clk 0:01:54]} 25. Qf2 {[%clk 0:02:15]}  Qa5 {[%clk 0:01:31]} 26. a3 {[%clk 0:02:11]}  N8d7 {[%clk 0:01:30]} 27. Nxd7 {[%clk 0:02:07]}  Nxd7 {[%clk 0:01:30]} 28. Qd4 {[%clk 0:02:07]}  Nf6 {[%clk 0:01:24]} 29. Re1 {[%clk 0:02:07]}  a6 {[%clk 0:01:10]} 30. Re7 {[%clk 0:02:06]}  b5 {[%clk 0:00:56]} 31. Qa7 {[%clk 0:02:01]}  Qa4 {[%clk 0:00:40]} 32. Rxf7 {[%clk 0:01:57]}  Qd1+ {[%clk 0:00:40]} 33. Bf1 {[%clk 0:01:58]}  Nh5 {[%clk 0:00:27]} 34. Re7 {[%clk 0:01:46]}  Qd2 {[%clk 0:00:14]} 35. Qxa6 {[%clk 0:01:42]}  Rf8 {[%clk 0:00:10]} 36. Qxg6 {[%clk 0:01:42]} 1-0


[Site "https://www.chess.com"]

[Event "Titled Tuesday Blitz November 9 2021"]
[White "Makhnev, Denis"]
[Black "FarOut1364"]
[WhiteFideId "13707647"]
[WhiteElo "2537"]
[BlackElo "2773"]
[Result "1-0"]
[Round "04"]
[TimeControl "180+1"]
[Date "2021.11.09"]
[WhiteClock "0:00:41"]
[BlackClock "0:01:48"]

1. e4 {[%clk 0:03:00]}  e5 {[%clk 0:02:59]} 2. Nf3 {[%clk 0:03:00]}  Nc6 {[%clk 0:02:59]} 3. Bc4 {[%clk 0:03:01]}  Nf6 {[%clk 0:02:59]} 4. d3 {[%clk 0:03:01]}  h6 {[%clk 0:02:58]} 5. c3 {[%clk 0:02:58]}  d6 {[%clk 0:02:55]} 6. a4 {[%clk 0:02:55]}  g5 {[%clk 0:02:55]} 7. Nbd2 {[%clk 0:02:51]}  Bg7 {[%clk 0:02:52]} 8. Nf1 {[%clk 0:02:51]}  g4 {[%clk 0:02:39]} 9. N3d2 {[%clk 0:02:47]}  d5 {[%clk 0:02:33]} 10. exd5 {[%clk 0:02:45]}  Nxd5 {[%clk 0:02:34]} 11. Ne4 {[%clk 0:02:31]}  O-O {[%clk 0:02:17]} 12. Bxh6 {[%clk 0:01:23]}  Bxh6 {[%clk 0:02:04]} 13. Bxd5 {[%clk 0:01:22]}  Bf5 {[%clk 0:01:58]} 14. Nfg3 {[%clk 0:01:18]}  Bd7 {[%clk 0:01:55]} 15. Nh5 {[%clk 0:01:14]}  Bg7 {[%clk 0:01:53]} 16. Qd2 {[%clk 0:01:11]}  Ne7 {[%clk 0:01:52]} 17. Qg5 {[%clk 0:00:57]}  Nf5 {[%clk 0:01:48]} 18. Nef6+ {[%clk 0:00:41]} 1-0


[Site "https://www.chess.com"]

[Event "Titled Tuesday Blitz November 9 2021"]
[White "Martinez Alcantara, Jose Eduardo"]
[Black "Koellner, Ruben Gideon"]
[WhiteFideId "3805662"]
[BlackFideId "12993093"]
[WhiteElo "2690"]
[BlackElo "2586"]
[Result "1-0"]
[Round "04"]
[TimeControl "180+1"]
[Date "2021.11.09"]
[WhiteClock "0:01:28"]
[BlackClock "0:00:09"]

1. e4 {[%clk 0:02:58]}  d6 {[%clk 0:02:59]} 2. d4 {[%clk 0:02:57]}  Nf6 {[%clk 0:02:59]} 3. Bd3 {[%clk 0:02:56]}  e5 {[%clk 0:02:57]} 4. dxe5 {[%clk 0:02:55]}  dxe5 {[%clk 0:02:57]} 5. Nf3 {[%clk 0:02:55]}  Nbd7 {[%clk 0:02:56]} 6. Nbd2 {[%clk 0:02:56]}  c6 {[%clk 0:02:54]} 7. a4 {[%clk 0:02:55]}  Qc7 {[%clk 0:02:54]} 8. Nc4 {[%clk 0:02:55]}  a5 {[%clk 0:02:42]} 9. O-O {[%clk 0:02:55]}  Bc5 {[%clk 0:02:40]} 10. Nfd2 {[%clk 0:02:49]}  O-O {[%clk 0:02:34]} 11. Nb3 {[%clk 0:02:50]}  Be7 {[%clk 0:02:19]} 12. Bd2 {[%clk 0:02:50]}  b6 {[%clk 0:02:18]} 13. Kh1 {[%clk 0:02:47]}  Ba6 {[%clk 0:02:16]} 14. Qe2 {[%clk 0:02:45]}  Bxc4 {[%clk 0:02:14]} 15. Bxc4 {[%clk 0:02:44]}  Nc5 {[%clk 0:02:14]} 16. Nxc5 {[%clk 0:02:29]}  Bxc5 {[%clk 0:02:15]} 17. f4 {[%clk 0:02:30]}  exf4 {[%clk 0:01:47]} 18. Bxf4 {[%clk 0:02:23]}  Qe7 {[%clk 0:01:46]} 19. Rae1 {[%clk 0:02:16]}  Rae8 {[%clk 0:01:40]} 20. Bd3 {[%clk 0:01:54]}  Bd4 {[%clk 0:01:21]} 21. e5 {[%clk 0:01:50]}  Bxb2 {[%clk 0:00:29]} 22. exf6 {[%clk 0:01:47]}  Qxe2 {[%clk 0:00:28]} 23. Rxe2 {[%clk 0:01:45]}  Bxf6 {[%clk 0:00:22]} 24. Bc7 {[%clk 0:01:39]}  Bd4 {[%clk 0:00:18]} 25. Rd2 {[%clk 0:01:34]}  Bc5 {[%clk 0:00:16]} 26. Bc4 {[%clk 0:01:34]}  Re7 {[%clk 0:00:13]} 27. Bd6 {[%clk 0:01:32]}  Bxd6 {[%clk 0:00:12]} 28. Rxd6 {[%clk 0:01:33]}  Rc8 {[%clk 0:00:12]} 29. h3 {[%clk 0:01:33]}  g6 {[%clk 0:00:11]} 30. Rb1 {[%clk 0:01:27]}  Rb7 {[%clk 0:00:09]} 31. Ba6 {[%clk 0:01:28]} 1-0


[Site "https://www.chess.com"]

[Event "Titled Tuesday Blitz November 9 2021"]
[White "Moroni, Luca Jr"]
[Black "Xiong, Jeffery"]
[WhiteFideId "865834"]
[BlackFideId "2047640"]
[WhiteElo "2491"]
[BlackElo "2699"]
[Result "0-1"]
[Round "04"]
[TimeControl "180+1"]
[Date "2021.11.09"]
[WhiteClock "0:00:01"]
[BlackClock "0:00:06"]

1. d4 {[%clk 0:03:00]}  Nf6 {[%clk 0:02:59]} 2. c4 {[%clk 0:03:01]}  c5 {[%clk 0:02:59]} 3. Nf3 {[%clk 0:03:00]}  cxd4 {[%clk 0:02:58]} 4. Nxd4 {[%clk 0:03:01]}  e6 {[%clk 0:02:59]} 5. Nc3 {[%clk 0:03:00]}  b6 {[%clk 0:02:50]} 6. e4 {[%clk 0:02:57]}  d6 {[%clk 0:02:51]} 7. Be2 {[%clk 0:02:54]}  Bb7 {[%clk 0:02:51]} 8. f3 {[%clk 0:02:54]}  a6 {[%clk 0:02:50]} 9. Be3 {[%clk 0:02:54]}  Be7 {[%clk 0:02:51]} 10. O-O {[%clk 0:02:54]}  Nbd7 {[%clk 0:02:51]} 11. Qd2 {[%clk 0:02:53]}  O-O {[%clk 0:02:51]} 12. Rfd1 {[%clk 0:02:41]}  Qc7 {[%clk 0:02:51]} 13. Rac1 {[%clk 0:02:41]}  Rfc8 {[%clk 0:02:51]} 14. Bf1 {[%clk 0:02:40]}  Qd8 {[%clk 0:02:51]} 15. Qf2 {[%clk 0:02:28]}  Ne5 {[%clk 0:02:49]} 16. b3 {[%clk 0:02:26]}  h5 {[%clk 0:02:48]} 17. h3 {[%clk 0:02:17]}  Ng6 {[%clk 0:02:48]} 18. Nde2 {[%clk 0:02:02]}  Nd7 {[%clk 0:02:47]} 19. Nf4 {[%clk 0:01:55]}  Nxf4 {[%clk 0:02:18]} 20. Bxf4 {[%clk 0:01:56]}  Rc6 {[%clk 0:02:19]} 21. Qg3 {[%clk 0:01:43]}  h4 {[%clk 0:02:17]} 22. Qh2 {[%clk 0:01:43]}  Qf8 {[%clk 0:02:15]} 23. Rd2 {[%clk 0:01:20]}  Rd8 {[%clk 0:02:10]} 24. Rcd1 {[%clk 0:01:19]}  Ne5 {[%clk 0:01:58]} 25. a4 {[%clk 0:01:04]}  Rcc8 {[%clk 0:01:49]} 26. Kh1 {[%clk 0:01:03]}  Bf6 {[%clk 0:01:41]} 27. Ne2 {[%clk 0:00:45]}  Qe7 {[%clk 0:01:41]} 28. Qg1 {[%clk 0:00:42]}  Qc7 {[%clk 0:01:32]} 29. Be3 {[%clk 0:00:37]}  Nd7 {[%clk 0:01:32]} 30. Qf2 {[%clk 0:00:36]}  Nc5 {[%clk 0:01:32]} 31. Nc1 {[%clk 0:00:30]}  Be5 {[%clk 0:01:29]} 32. Qxh4 {[%clk 0:00:26]}  d5 {[%clk 0:01:29]} 33. exd5 {[%clk 0:00:23]}  exd5 {[%clk 0:01:30]} 34. cxd5 {[%clk 0:00:22]}  Re8 {[%clk 0:01:27]} 35. d6 {[%clk 0:00:17]}  Bxd6 {[%clk 0:01:27]} 36. Bxc5 {[%clk 0:00:07]}  Bxc5 {[%clk 0:00:31]} 37. Rd7 {[%clk 0:00:08]}  Qe5 {[%clk 0:00:31]} 38. Bc4 {[%clk 0:00:07]}  Re7 {[%clk 0:00:26]} 39. Rxe7 {[%clk 0:00:06]}  Bxe7 {[%clk 0:00:26]} 40. Qd4 {[%clk 0:00:06]}  Rd8 {[%clk 0:00:16]} 41. Qxd8+ {[%clk 0:00:03]}  Bxd8 {[%clk 0:00:16]} 42. Rxd8+ {[%clk 0:00:04]}  Kh7 {[%clk 0:00:16]} 43. Nd3 {[%clk 0:00:04]}  Qe7 {[%clk 0:00:13]} 44. Rd4 {[%clk 0:00:04]}  b5 {[%clk 0:00:06]} 45. axb5 {[%clk 0:00:04]}  axb5 {[%clk 0:00:07]} 46. Bxb5 {[%clk 0:00:04]}  Qe3 {[%clk 0:00:07]} 47. Rd7 {[%clk 0:00:03]}  Bxf3 {[%clk 0:00:03]} 48. gxf3 {[%clk 0:00:04]}  Qxf3+ {[%clk 0:00:04]} 49. Kh2 {[%clk 0:00:04]}  Qe2+ {[%clk 0:00:04]} 50. Kg3 {[%clk 0:00:03]}  Qe3+ {[%clk 0:00:04]} 51. Kh2 {[%clk 0:00:04]}  Qd2+ {[%clk 0:00:04]} 52. Kg3 {[%clk 0:00:03]}  Qg5+ {[%clk 0:00:04]} 53. Kh2 {[%clk 0:00:03]}  Qxb5 {[%clk 0:00:05]} 54. Rxf7 {[%clk 0:00:01]}  Qxd3 {[%clk 0:00:04]} 55. Rf2 {[%clk 0:00:01]}  Qxb3 {[%clk 0:00:03]} 56. Rg2 {[%clk 0:00:02]}  Qb8+ {[%clk 0:00:03]} 57. Kh1 {[%clk 0:00:01]}  Kh6 {[%clk 0:00:04]} 58. Rg4 {[%clk 0:00:01]}  Qb2 {[%clk 0:00:04]} 59. Kg1 {[%clk 0:00:01]}  Kh5 {[%clk 0:00:04]} 60. Kh1 {[%clk 0:00:02]}  Qc1+ {[%clk 0:00:04]} 61. Kg2 {[%clk 0:00:02]}  Qd2+ {[%clk 0:00:05]} 62. Kg3 {[%clk 0:00:03]}  Qc3+ {[%clk 0:00:05]} 63. Kg2 {[%clk 0:00:03]}  Qc6+ {[%clk 0:00:05]} 64. Kg3 {[%clk 0:00:03]}  Qd6+ {[%clk 0:00:05]} 65. Kg2 {[%clk 0:00:04]}  Qd2+ {[%clk 0:00:05]} 66. Kg3 {[%clk 0:00:04]}  Qb2 {[%clk 0:00:04]} 67. Rh4+ {[%clk 0:00:04]}  Kg5 {[%clk 0:00:05]} 68. Rg4+ {[%clk 0:00:05]}  Kf5 {[%clk 0:00:06]} 69. Rf4+ {[%clk 0:00:05]}  Ke5 {[%clk 0:00:06]} 70. Rg4 {[%clk 0:00:06]}  Kd5 {[%clk 0:00:07]} 71. Rg5+ {[%clk 0:00:04]}  Ke4 {[%clk 0:00:06]} 72. Rg4+ {[%clk 0:00:05]}  Ke3 {[%clk 0:00:06]} 73. Kh4 {[%clk 0:00:05]}  Qf2+ {[%clk 0:00:06]} 74. Kh5 {[%clk 0:00:04]}  Qf5+ {[%clk 0:00:06]} 75. Kh4 {[%clk 0:00:02]}  Qf6+ {[%clk 0:00:07]} 76. Kg3 {[%clk 0:00:01]}  Qf2# {[%clk 0:00:06]} 0-1


[Site "https://www.chess.com"]

[Event "Titled Tuesday Blitz November 9 2021"]
[White "Nagy, Gabor"]
[Black "Andreikin, Dmitry"]
[WhiteFideId "737119"]
[BlackFideId "4158814"]
[WhiteElo "2534"]
[BlackElo "2736"]
[Result "0-1"]
[Round "04"]
[TimeControl "180+1"]
[Date "2021.11.09"]
[WhiteClock "0:00:13"]
[BlackClock "0:00:47"]

1. d4 {[%clk 0:03:00]}  g6 {[%clk 0:03:00]} 2. e4 {[%clk 0:03:00]}  Bg7 {[%clk 0:03:00]} 3. Nf3 {[%clk 0:03:00]}  c6 {[%clk 0:02:58]} 4. Nc3 {[%clk 0:03:00]}  d5 {[%clk 0:02:57]} 5. h3 {[%clk 0:03:00]}  dxe4 {[%clk 0:02:57]} 6. Nxe4 {[%clk 0:03:00]}  Nf6 {[%clk 0:02:57]} 7. Bd3 {[%clk 0:03:00]}  Bf5 {[%clk 0:02:51]} 8. Nxf6+ {[%clk 0:02:55]}  Bxf6 {[%clk 0:02:51]} 9. O-O {[%clk 0:02:52]}  Bxd3 {[%clk 0:02:50]} 10. Qxd3 {[%clk 0:02:53]}  O-O {[%clk 0:02:50]} 11. Bh6 {[%clk 0:02:52]}  Re8 {[%clk 0:02:50]} 12. Rad1 {[%clk 0:02:51]}  Qa5 {[%clk 0:02:47]} 13. a3 {[%clk 0:02:38]}  Nd7 {[%clk 0:02:47]} 14. Rfe1 {[%clk 0:02:37]}  Rad8 {[%clk 0:02:46]} 15. c4 {[%clk 0:02:31]}  b5 {[%clk 0:02:42]} 16. cxb5 {[%clk 0:02:14]}  Qxb5 {[%clk 0:02:38]} 17. b4 {[%clk 0:01:55]}  Nb6 {[%clk 0:02:33]} 18. Ne5 {[%clk 0:01:48]}  Bxe5 {[%clk 0:01:54]} 19. Rxe5 {[%clk 0:01:41]}  Qxd3 {[%clk 0:01:53]} 20. Rxd3 {[%clk 0:01:41]}  f6 {[%clk 0:01:52]} 21. Rc5 {[%clk 0:01:38]}  Nd7 {[%clk 0:01:49]} 22. Ra5 {[%clk 0:01:19]}  g5 {[%clk 0:01:46]} 23. h4 {[%clk 0:01:15]}  Ne5 {[%clk 0:01:40]} 24. Rg3 {[%clk 0:01:10]}  Rxd4 {[%clk 0:01:39]} 25. hxg5 {[%clk 0:01:10]}  Ng4 {[%clk 0:01:39]} 26. Kf1 {[%clk 0:00:33]}  Kf7 {[%clk 0:01:37]} 27. gxf6 {[%clk 0:00:31]}  Nxh6 {[%clk 0:01:32]} 28. Rh5 {[%clk 0:00:29]}  exf6 {[%clk 0:01:26]} 29. Re3 {[%clk 0:00:19]}  Ng4 {[%clk 0:00:54]} 30. Rxh7+ {[%clk 0:00:17]}  Kg6 {[%clk 0:00:55]} 31. Rxe8 {[%clk 0:00:17]}  Kxh7 {[%clk 0:00:55]} 32. Re7+ {[%clk 0:00:18]}  Kg6 {[%clk 0:00:56]} 33. Rxa7 {[%clk 0:00:17]}  Rd2 {[%clk 0:00:56]} 34. f3 {[%clk 0:00:18]}  Ne3+ {[%clk 0:00:55]} 35. Ke1 {[%clk 0:00:18]}  Ra2 {[%clk 0:00:52]} 36. g4 {[%clk 0:00:16]}  Rxa3 {[%clk 0:00:50]} 37. Rc7 {[%clk 0:00:15]}  Nc2+ {[%clk 0:00:49]} 38. Kf2 {[%clk 0:00:15]}  Nd4 {[%clk 0:00:47]} 39. f4 {[%clk 0:00:13]}  Rf3+ {[%clk 0:00:47]} 40. Kg2 {[%clk 0:00:13]}  Rxf4 {[%clk 0:00:47]} 0-1


[Site "https://www.chess.com"]

[Event "Titled Tuesday Blitz November 9 2021"]
[White "Tabatabaei, M. Amin"]
[Black "Libiszewski, Fabien"]
[WhiteFideId "12521213"]
[BlackFideId "616834"]
[WhiteElo "2555"]
[BlackElo "2440"]
[Result "1/2-1/2"]
[Round "04"]
[TimeControl "180+1"]
[Date "2021.11.09"]
[WhiteClock "0:00:03"]
[BlackClock "0:00:05"]

1. a3 {[%clk 0:03:00]}  g6 {[%clk 0:02:56]} 2. Nf3 {[%clk 0:02:59]}  Bg7 {[%clk 0:02:56]} 3. e4 {[%clk 0:02:59]}  d6 {[%clk 0:02:52]} 4. d4 {[%clk 0:02:59]}  Nf6 {[%clk 0:02:52]} 5. Nc3 {[%clk 0:02:59]}  O-O {[%clk 0:02:52]} 6. Be2 {[%clk 0:02:59]}  Nc6 {[%clk 0:02:51]} 7. O-O {[%clk 0:02:59]}  Bg4 {[%clk 0:02:49]} 8. h3 {[%clk 0:02:58]}  Bxf3 {[%clk 0:02:49]} 9. Bxf3 {[%clk 0:02:59]}  e5 {[%clk 0:02:49]} 10. d5 {[%clk 0:03:00]}  Nd4 {[%clk 0:02:49]} 11. Be3 {[%clk 0:03:00]}  Nxf3+ {[%clk 0:02:44]} 12. Qxf3 {[%clk 0:03:01]}  Nd7 {[%clk 0:02:39]} 13. Qe2 {[%clk 0:03:01]}  f5 {[%clk 0:02:39]} 14. f3 {[%clk 0:03:02]}  Nf6 {[%clk 0:02:35]} 15. g4 {[%clk 0:02:58]}  Qd7 {[%clk 0:02:17]} 16. Kg2 {[%clk 0:02:51]}  Rf7 {[%clk 0:02:17]} 17. a4 {[%clk 0:02:50]}  a6 {[%clk 0:02:15]} 18. a5 {[%clk 0:02:50]}  Raf8 {[%clk 0:02:15]} 19. Bg5 {[%clk 0:02:32]}  Ne8 {[%clk 0:02:07]} 20. Rae1 {[%clk 0:02:20]}  Bf6 {[%clk 0:02:07]} 21. Bh6 {[%clk 0:02:19]}  Bg7 {[%clk 0:02:07]} 22. Bd2 {[%clk 0:02:15]}  c6 {[%clk 0:02:00]} 23. Qc4 {[%clk 0:02:12]}  Nc7 {[%clk 0:01:57]} 24. Be3 {[%clk 0:02:09]}  fxg4 {[%clk 0:01:40]} 25. fxg4 {[%clk 0:02:06]}  Rxf1 {[%clk 0:01:35]} 26. Rxf1 {[%clk 0:02:07]}  Rxf1 {[%clk 0:01:35]} 27. Qxf1 {[%clk 0:01:55]}  cxd5 {[%clk 0:01:33]} 28. Nxd5 {[%clk 0:01:48]}  Nxd5 {[%clk 0:01:30]} 29. Qc4 {[%clk 0:01:49]}  Qc6 {[%clk 0:01:25]} 30. Qxd5+ {[%clk 0:01:47]}  Qxd5 {[%clk 0:01:25]} 31. exd5 {[%clk 0:01:48]}  Bf6 {[%clk 0:01:07]} 32. g5 {[%clk 0:01:01]}  Bd8 {[%clk 0:01:03]} 33. b4 {[%clk 0:00:59]}  Kf7 {[%clk 0:00:44]} 34. Kf3 {[%clk 0:00:57]}  Ke7 {[%clk 0:00:39]} 35. Ke4 {[%clk 0:00:55]}  Kd7 {[%clk 0:00:37]} 36. c4 {[%clk 0:00:56]}  Be7 {[%clk 0:00:38]} 37. c5 {[%clk 0:00:55]}  Kc7 {[%clk 0:00:38]} 38. Kd3 {[%clk 0:00:51]}  Kd7 {[%clk 0:00:37]} 39. Kc4 {[%clk 0:00:51]}  Kc7 {[%clk 0:00:36]} 40. Kc3 {[%clk 0:00:26]}  Kd7 {[%clk 0:00:36]} 41. Kd3 {[%clk 0:00:27]}  Kc7 {[%clk 0:00:36]} 42. cxd6+ {[%clk 0:00:24]}  Bxd6 {[%clk 0:00:36]} 43. Bc5 {[%clk 0:00:25]}  e4+ {[%clk 0:00:23]} 44. Kxe4 {[%clk 0:00:25]}  Bg3 {[%clk 0:00:23]} 45. Kf3 {[%clk 0:00:20]}  Bh4 {[%clk 0:00:18]} 46. Kf4 {[%clk 0:00:20]}  Kd7 {[%clk 0:00:17]} 47. Bf8 {[%clk 0:00:16]}  Be1 {[%clk 0:00:16]} 48. Bc5 {[%clk 0:00:08]}  Bh4 {[%clk 0:00:14]} 49. Kg4 {[%clk 0:00:09]}  Be1 {[%clk 0:00:14]} 50. h4 {[%clk 0:00:09]}  Bc3 {[%clk 0:00:13]} 51. Kf4 {[%clk 0:00:09]}  Be1 {[%clk 0:00:10]} 52. Kg4 {[%clk 0:00:09]}  Bc3 {[%clk 0:00:10]} 53. h5 {[%clk 0:00:10]}  Bd2 {[%clk 0:00:09]} 54. Bf8 {[%clk 0:00:07]}  Be1 {[%clk 0:00:08]} 55. Bc5 {[%clk 0:00:06]}  Bd2 {[%clk 0:00:08]} 56. hxg6 {[%clk 0:00:05]}  hxg6 {[%clk 0:00:09]} 57. Bf8 {[%clk 0:00:05]}  Be3 {[%clk 0:00:08]} 58. Bg7 {[%clk 0:00:04]}  Bd2 {[%clk 0:00:08]} 59. Bf8 {[%clk 0:00:04]}  Be3 {[%clk 0:00:08]} 60. Bc5 {[%clk 0:00:03]}  Bd2 {[%clk 0:00:08]} 61. Kh4 {[%clk 0:00:03]}  Kc7 {[%clk 0:00:07]} 62. Bf8 {[%clk 0:00:03]}  Kd7 {[%clk 0:00:07]} 63. Bc5 {[%clk 0:00:03]}  Kc7 {[%clk 0:00:07]} 64. Be7 {[%clk 0:00:03]}  Kd7 {[%clk 0:00:08]} 65. Bf8 {[%clk 0:00:04]}  Kc7 {[%clk 0:00:08]} 66. Kg4 {[%clk 0:00:04]}  Kd7 {[%clk 0:00:08]} 67. Bc5 {[%clk 0:00:04]}  Kc7 {[%clk 0:00:08]} 68. d6+ {[%clk 0:00:02]}  Kd7 {[%clk 0:00:08]} 69. Kh4 {[%clk 0:00:02]}  Ke6 {[%clk 0:00:08]} 70. Kg4 {[%clk 0:00:02]}  Bc1 {[%clk 0:00:08]} 71. Bb6 {[%clk 0:00:01]}  Kxd6 {[%clk 0:00:08]} 72. Bc5+ {[%clk 0:00:02]}  Kd5 {[%clk 0:00:08]} 73. Be7 {[%clk 0:00:03]}  Bd2 {[%clk 0:00:08]} 74. Kf3 {[%clk 0:00:03]}  Kc4 {[%clk 0:00:08]} 75. Ke4 {[%clk 0:00:03]}  Bc3 {[%clk 0:00:05]} 76. Bd6 {[%clk 0:00:02]}  Bb2 {[%clk 0:00:04]} 77. Be7 {[%clk 0:00:02]}  Bc3 {[%clk 0:00:05]} 78. Bf8 {[%clk 0:00:02]}  Bb2 {[%clk 0:00:05]} 79. Be7 {[%clk 0:00:03]}  Bc3 {[%clk 0:00:05]} 1/2-1/2


[Site "https://www.chess.com"]

[Event "Titled Tuesday Blitz November 9 2021"]
[White "Tologon tegin, Semetei"]
[Black "Zhigalko, Sergei"]
[WhiteFideId "13800574"]
[BlackFideId "13502956"]
[WhiteElo "2224"]
[BlackElo "2662"]
[Result "0-1"]
[Round "04"]
[TimeControl "180+1"]
[Date "2021.11.09"]
[WhiteClock "0:00:06"]
[BlackClock "0:00:04"]

1. e4 {[%clk 0:03:00]}  c5 {[%clk 0:02:59]} 2. Nf3 {[%clk 0:02:58]}  Nc6 {[%clk 0:03:00]} 3. d4 {[%clk 0:02:58]}  cxd4 {[%clk 0:03:01]} 4. Nxd4 {[%clk 0:02:59]}  Nf6 {[%clk 0:03:01]} 5. Nc3 {[%clk 0:02:59]}  e5 {[%clk 0:03:02]} 6. Ndb5 {[%clk 0:02:59]}  d6 {[%clk 0:03:02]} 7. Bg5 {[%clk 0:02:57]}  a6 {[%clk 0:03:03]} 8. Na3 {[%clk 0:02:56]}  b5 {[%clk 0:03:03]} 9. Nd5 {[%clk 0:02:57]}  Be7 {[%clk 0:03:03]} 10. Bxf6 {[%clk 0:02:57]}  Bxf6 {[%clk 0:03:04]} 11. c4 {[%clk 0:02:57]}  b4 {[%clk 0:03:04]} 12. Nc2 {[%clk 0:02:57]}  O-O {[%clk 0:03:04]} 13. b3 {[%clk 0:02:54]}  a5 {[%clk 0:03:02]} 14. h4 {[%clk 0:02:49]}  Be6 {[%clk 0:02:55]} 15. g3 {[%clk 0:02:49]}  a4 {[%clk 0:02:55]} 16. Bh3 {[%clk 0:02:40]}  Nd4 {[%clk 0:02:09]} 17. Nxd4 {[%clk 0:02:20]}  exd4 {[%clk 0:02:08]} 18. Rb1 {[%clk 0:01:54]}  axb3 {[%clk 0:02:05]} 19. axb3 {[%clk 0:01:55]}  Ra2 {[%clk 0:01:25]} 20. Kf1 {[%clk 0:01:42]}  Bxd5 {[%clk 0:01:03]} 21. cxd5 {[%clk 0:01:40]}  d3 {[%clk 0:00:58]} 22. Qxd3 {[%clk 0:01:36]}  Qb6 {[%clk 0:00:55]} 23. Qf3 {[%clk 0:00:52]}  Bd4 {[%clk 0:00:50]} 24. Rh2 {[%clk 0:00:52]}  Rfa8 {[%clk 0:00:40]} 25. Kg1 {[%clk 0:00:44]}  Rd2 {[%clk 0:00:33]} 26. Rf1 {[%clk 0:00:33]}  Raa2 {[%clk 0:00:24]} 27. h5 {[%clk 0:00:29]}  Qd8 {[%clk 0:00:17]} 28. Qf4 {[%clk 0:00:09]}  Be5 {[%clk 0:00:14]} 29. Qg4 {[%clk 0:00:07]}  Rab2 {[%clk 0:00:12]} 30. Rg2 {[%clk 0:00:06]}  Rxb3 {[%clk 0:00:10]} 31. h6 {[%clk 0:00:06]}  g6 {[%clk 0:00:09]} 32. f4 {[%clk 0:00:07]}  Bd4+ {[%clk 0:00:08]} 33. Kh2 {[%clk 0:00:07]}  Rbb2 {[%clk 0:00:08]} 34. Rxd2 {[%clk 0:00:06]}  Rxd2+ {[%clk 0:00:08]} 35. Kh1 {[%clk 0:00:07]}  b3 {[%clk 0:00:04]} 36. Qf3 {[%clk 0:00:07]}  b2 {[%clk 0:00:04]} 37. Qb3 {[%clk 0:00:06]}  Qf8 {[%clk 0:00:04]} 0-1


[Site "https://www.chess.com"]